[Event "Prague Festival-Futures 2022"]
[Site "Prague"]
[Date "2022.06.15"]
[Round "7.4"]
[White "Kovalskyi, Roman"]
[Black "Kuru, Atilla"]
[Result "0-1"]
[ECO "D02"]
[WhiteElo "2039"]
[BlackElo "2023"]
[Annotator "NA RC"]
[PlyCount "122"]
[EventDate "2022.06.07"]
[EventType "tourn"]
[EventCountry "CZE"]
[SourceTitle "playchess.com"]
[Source "ChessBase"]
[SourceQuality "1"]
[TimeControl "40/5400+30:1800+30"]

1. Nf3 {[%emt 0:00:08]} d5 {[%emt 0:00:17]} 2. g3 {[%emt 0:00:43]} c5 {[%emt 0:00:42]} 3. Bg2 {[%emt 0:00:24]} Nc6 {[%emt 0:00:05]} 4. d4 {[%emt 0:00:47]} cxd4 {[%emt 0:00:19]} 5. Nxd4 {[%emt 0:00:06]} Nf6 {[%emt 0:00:21]} 6. O-O {[%emt 0:01:26]} Bg4 {[%emt 0:02:49]} 7. Be3 {[%emt 0:03:16]} Qd7 {[%emt 0:03:17]} 8. c4 {[%emt 0:07:17]} Rd8 {[%emt 0:00:08]} 9. Nc3 {[%emt 0:06:52]} e5 {[%emt 0:02:19]} 10. cxd5 {[%emt 0:11:07]} Nxd4 {[%emt 0:01:32]} 11. Bxd4 {[%emt 0:00:48]} exd4 {[%emt 0:00:07]} 12. Qxd4 {[%emt 0:00:04]} b6 {[%emt 0:00:31]} 13. e4 {[%emt 0:07:14]} Bc5 {[%emt 0:00:05]} 14. Qe5+ {[%emt 0:01:45]} Qe7 {[%emt 0:00:56]} 15. Qf4 {[%emt 0:03:59]} Bd6 {[%emt 0:06:10]} 16. Qd2 {[%emt 0:01:01]} O-O {[%emt 0:00:27]} 17. h3 {[%emt 0:02:38]} Bc8 {[%emt 0:00:52]} 18. f4 {[%emt 0:01:09]} Bb4 {[%emt 0:00:06]} 19. Rfe1 {[%emt 0:02:03]} Bb7 {[%emt 0:01:29]} 20. Kh2 {[%emt 0:00:55]} Bxc3 {[%emt 0:01:04]} 21. bxc3 {[%emt 0:06:27]} Qc5 {[%emt 0:00:07]} 22. Re3 {[%emt 0:02:39]} Ne8 {[%emt 0:08:21]} 23. Rd1 {[%emt 0:02:42]} Nd6 {[%emt 0:00:12]} 24. Qe2 {[%emt 0:03:55]} Ba6 {[%emt 0:00:40]} 25. Qf3 {[%emt 0:01:15]} Rfe8 {[%emt 0:01:14]} 26. e5 {[%emt 0:06:40]} Nc4 {[%emt 0:00:08]} 27. Ree1 {[%emt 0:00:12]} Bb7 {[%emt 0:01:31]} 28. g4 {[%emt 0:10:07]} b5 {[%emt 0:00:18]} 29. g5 {[%emt 0:01:03]} Nb6 {[%emt 0:00:19]} 30. Rd4 {[%emt 0:06:23]} Rxd5 {[%emt 0:00:53]} 31. Qf2 {[%emt 0:01:56]} Qxc3 {[%emt 0:02:34]} 32. Bxd5 {[%emt 0:00:09]} Nxd5 {[%emt 0:00:08]} 33. Red1 {[%emt 0:01:22]} Rd8 {[%emt 0:01:53]} 34. Qg2 {[%emt 0:02:08]} Rd7 {[%emt 0:01:02]} 35. R1d2 {[%emt 0:03:49]} Qc5 {[%emt 0:02:46]} 36. Qg4 {[%emt 0:01:09]} Qc6 {[%emt 0:00:56]} 37. Qd1 {[%emt 0:01:33]} g6 {[%emt 0:00:24]} 38. Rc2 {[%emt 0:00:24]} Qe6 {[%emt 0:00:08]} 39. Qg4 {[%emt 0:00:52]} Qe7 {[%emt 0:00:41]} 40. Rcd2 {[%emt 0:00:00]} Rc7 {[%emt 0:00:00]} 41. Rxd5 {[%emt 0:14:45]} Bxd5 {[%emt 0:00:34]} 42. Rxd5 {[%emt 0:00:06]} Qb4 {[%emt 0:00:07]} 43. Rd1 {[%emt 0:07:38]} Rc2+ {[%emt 0:00:15]} 44. Kg3 {[%emt 0:01:19]} Qe4 {[%emt 0:03:55]} 45. Qf3 {[%emt 0:05:23]} Qc4 {[%emt 0:01:34]} 46. Rd3 {[%emt 0:05:13]} b4 {[%emt 0:00:08]} 47. Qa8+ {[%emt 0:00:33]} Kg7 {[%emt 0:00:03]} 48. Rf3 {[%emt 0:00:33]} Rxa2 {[%emt 0:00:36]} 49. Qd8 {[%emt 0:00:31]} Qe6 {[%emt 0:00:50]} 50. Rd3 {[%emt 0:00:30]} Ra3 {[%emt 0:00:02]} 51. h4 {[%emt 0:00:30]} Rxd3+ {[%emt 0:00:11]} 52. Qxd3 {[%emt 0:00:01]} b3 {[%emt 0:00:26]} 53. Qc3 {[%emt 0:00:59]} h5 {[%emt 0:00:08]} 54. gxh6+ {[%emt 0:00:03]} Kxh6 {[%emt 0:00:07]} 55. Qe3 {[%emt 0:00:43]} Qb6 {[%emt 0:00:05]} 56. Qd2 {[%emt 0:00:43]} b2 {[%emt 0:00:07]} 57. f5+ {[%emt 0:00:03]} Kg7 {[%emt 0:00:07]} 58. f6+ {[%emt 0:00:58]} Kh7 {[%emt 0:00:02]} 59. e6 {[%emt 0:00:28]} b1=Q {[%emt 0:00:23]} 60. exf7 {[%emt 0:00:06]} Q1g1+ {[%emt 0:00:08]} 61. Kf3 {[%emt 0:00:45]} Qxf6+ {[%emt 0:00:09]} 0-1

[Event "Prague Festival-Futures 2022"]
[Site "Prague"]
[Date "2022.06.15"]
[Round "7.5"]
[White "Bokhnak, Timofey"]
[Black "Tolmacevs, Artjoms"]
[Result "1-0"]
[ECO "B58"]
[WhiteElo "2060"]
[BlackElo "2087"]
[Annotator "NA RC"]
[PlyCount "67"]
[EventDate "2022.06.07"]
[EventType "tourn"]
[EventCountry "CZE"]
[SourceTitle "playchess.com"]
[Source "ChessBase"]
[SourceQuality "1"]
[TimeControl "40/5400+30:1800+30"]

1. e4 {[%emt 0:00:05]} c5 {[%emt 0:00:02]} 2. Nf3 {[%emt 0:00:28]} d6 {[%emt 0:00:13]} 3. d4 {[%emt 0:00:09]} cxd4 {[%emt 0:00:06]} 4. Nxd4 {[%emt 0:00:03]} Nf6 {[%emt 0:00:08]} 5. Nc3 {[%emt 0:00:03]} Bd7 {[%emt 0:01:24]} 6. Be2 {[%emt 0:00:45]} Nc6 {[%emt 0:01:16]} 7. Be3 {[%emt 0:00:17]} e5 {[%emt 0:00:48]} 8. Nb3 {[%emt 0:01:54]} Be7 {[%emt 0:03:03]} 9. h4 {[%emt 0:10:44]} Be6 {[%emt 0:07:30]} 10. Bf3 {[%emt 0:14:14]} a5 {[%emt 0:08:59]} 11. g4 {[%emt 0:06:33]} a4 {[%emt 0:00:25]} 12. Nc1 {[%emt 0:00:19]} a3 {[%emt 0:04:12]} 13. b3 {[%emt 0:00:09]} Nb4 {[%emt 0:09:28]} 14. g5 {[%emt 0:04:13]} Ng4 {[%emt 0:01:37]} 15. Bxg4 {[%emt 0:07:23]} Bxg4 {[%emt 0:00:05]} 16. Qxg4 {[%emt 0:08:15]} Nxc2+ {[%emt 0:00:26]} 17. Kd2 {[%emt 0:01:43]} Nxa1 {[%emt 0:00:07]} 18. Nd3 {[%emt 0:03:21]} Nxb3+ {[%emt 0:02:39]} 19. axb3 {[%emt 0:00:03]} O-O {[%emt 0:02:39]} 20. Nd5 {[%emt 0:00:50]} a2 {[%emt 0:01:09]} 21. Ra1 {[%emt 0:01:05]} Ra3 {[%emt 0:11:42]} 22. N3b4 {[%emt 0:02:56]} f5 {[%emt 0:04:44]} 23. exf5 {[%emt 0:03:05]} Kh8 {[%emt 0:00:50]} 24. f6 {[%emt 0:07:42]} gxf6 {[%emt 0:00:10]} 25. g6 {[%emt 0:00:08]} Rg8 {[%emt 0:01:06]} 26. Qe6 {[%emt 0:00:31]} Bf8 {[%emt 0:03:52]} 27. h5 {[%emt 0:03:15]} hxg6 {[%emt 0:02:40]} 28. Nxf6 {[%emt 0:00:49]} Rg7 {[%emt 0:01:19]} 29. h6 {[%emt 0:00:16]} Qa5 {[%emt 0:02:24]} 30. hxg7+ {[%emt 0:00:19]} Kxg7 {[%emt 0:00:02]} 31. Ne8+ {[%emt 0:00:53]} Kh7 {[%emt 0:00:05]} 32. Rh1+ {[%emt 0:00:07]} Bh6 {[%emt 0:00:03]} 33. Qf7+ {[%emt 0:00:13]} Kh8 {[%emt 0:00:07]} 34. Qg7# {[%emt 0:00:04]} 1-0

[Event "Prague Festival-Futures 2022"]
[Site "Prague"]
[Date "2022.06.16"]
[Round "8.1"]
[White "Peglau, Charis"]
[Black "Balint, Peter"]
[Result "0-1"]
[ECO "A29"]
[WhiteElo "2008"]
[BlackElo "2097"]
[Annotator "NA RC"]
[PlyCount "96"]
[EventDate "2022.06.07"]
[EventType "tourn"]
[EventCountry "CZE"]
[SourceTitle "playchess.com"]
[Source "ChessBase"]
[SourceQuality "1"]
[TimeControl "40/5400+30:1800+30"]

1. c4 {[%emt 0:00:03]} Nf6 {[%emt 0:00:19]} 2. Nc3 {[%emt 0:00:12]} e5 {[%emt 0:04:43]} 3. g3 {[%emt 0:00:22]} d5 {[%emt 0:02:07]} 4. cxd5 {[%emt 0:00:13]} Nxd5 {[%emt 0:00:05]} 5. Nf3 {[%emt 0:00:58]} Nc6 {[%emt 0:00:10]} 6. Bg2 {[%emt 0:00:07]} Nb6 {[%emt 0:00:11]} 7. O-O {[%emt 0:00:28]} Be6 {[%emt 0:07:31]} 8. d4 {[%emt 0:00:51]} exd4 {[%emt 0:00:58]} 9. Nb5 {[%emt 0:00:14]} Bc5 {[%emt 0:03:48]} 10. Qc2 {[%emt 0:00:29]} Bc4 {[%emt 0:21:32]} 11. Bf4 {[%emt 0:00:51]} Bxb5 {[%emt 0:01:35]} 12. Qxc5 {[%emt 0:00:07]} Qd5 {[%emt 0:00:14]} 13. Qa3 {[%emt 0:00:17]} Nc4 {[%emt 0:04:18]} 14. Qb3 {[%emt 0:00:16]} Nb6 {[%emt 0:10:25]} 15. Nxd4 {[%emt 0:00:48]} Qxb3 {[%emt 0:00:25]} 16. Nxb3 {[%emt 0:00:08]} O-O-O {[%emt 0:00:19]} 17. Rfc1 {[%emt 0:03:00]} Nd5 {[%emt 0:02:57]} 18. Bxd5 {[%emt 0:06:17]} Rxd5 {[%emt 0:00:05]} 19. e4 {[%emt 0:00:42]} Rdd8 {[%emt 0:02:22]} 20. a4 {[%emt 0:02:35]} Bd3 {[%emt 0:01:24]} 21. Nc5 {[%emt 0:00:48]} Rhe8 {[%emt 0:00:59]} 22. f3 {[%emt 0:11:08]} f5 {[%emt 0:03:29]} 23. exf5 {[%emt 0:10:48]} Bxf5 {[%emt 0:01:44]} 24. Ra3 {[%emt 0:00:48]} Nd4 {[%emt 0:01:21]} 25. Raa1 {[%emt 0:43:11]} g5 {[%emt 0:03:39]} 26. Bxc7 {[%emt 0:04:54]} Kxc7 {[%emt 0:01:19]} 27. Ne6+ {[%emt 0:05:05]} Kb8 {[%emt 0:00:25]} 28. Nxd8 {[%emt 0:00:54]} Ne2+ {[%emt 0:00:05]} 29. Kf2 {[%emt 0:00:06]} Nxc1 {[%emt 0:00:04]} 30. Rxc1 {[%emt 0:03:16]} Rxd8 {[%emt 0:00:17]} 31. Rc5 {[%emt 0:00:33]} Rf8 {[%emt 0:02:13]} 32. Ke3 {[%emt 0:01:33]} h6 {[%emt 0:03:16]} 33. f4 {[%emt 0:01:52]} gxf4+ {[%emt 0:04:01]} 34. gxf4 {[%emt 0:00:02]} Rf6 {[%emt 0:00:16]} 35. b4 {[%emt 0:01:42]} b6 {[%emt 0:01:20]} 36. Rc4 {[%emt 0:01:05]} Re6+ {[%emt 0:00:52]} 37. Kf3 {[%emt 0:00:24]} Rd6 {[%emt 0:00:07]} 38. a5 {[%emt 0:00:42]} Rd3+ {[%emt 0:00:29]} 39. Kf2 {[%emt 0:00:50]} Kb7 {[%emt 0:01:26]} 40. axb6 {[%emt 0:00:00]} axb6 {[%emt 0:00:00]} 41. Kg2 {[%emt 0:01:12]} Ka6 {[%emt 0:01:14]} 42. Kf2 {[%emt 0:01:06]} Kb5 {[%emt 0:00:15]} 43. Rc7 {[%emt 0:00:14]} h5 {[%emt 0:02:08]} 44. Rb7 {[%emt 0:01:10]} Bg4 {[%emt 0:02:01]} 45. Rf7 {[%emt 0:01:14]} h4 {[%emt 0:01:03]} 46. Rf6 {[%emt 0:01:17]} Rb3 {[%emt 0:01:12]} 47. Rh6 {[%emt 0:00:53]} Rf3+ {[%emt 0:01:31]} 48. Kg1 {[%emt 0:00:27]} Bh3 {[%emt 0:00:08]} 0-1

[Event "Prague Festival-Futures 2022"]
[Site "Prague"]
[Date "2022.06.16"]
[Round "8.2"]
[White "Kuru, Atilla"]
[Black "Sowinski, Pawel"]
[Result "1/2-1/2"]
[ECO "C36"]
[WhiteElo "2023"]
[BlackElo "2060"]
[Annotator "TA"]
[PlyCount "92"]
[EventDate "2022.06.07"]
[EventType "tourn"]
[EventCountry "CZE"]
[SourceTitle "playchess.com"]
[Source "ChessBase"]
[SourceQuality "1"]
[TimeControl "40/5400+30:1800+30"]

{[%evp 11,92,-10,-20,-9,-10,-26,-20,-8,0,0,0,0,0,0,0,7,20,10,12,2,19,12,18,7,12,1,38,32,33,0,0,-12,-8,-13,-8,-49,-13,-52,-35,-74,-72,-106,-86,-108,-116,-181,0,0,0,0,0,0,0,0,0,0,0,0,0,0,0,0,0,0,0,0,4,5,5,4,6,6,17,0,0,0,26,32,38,0,0,0,33]} 1. e4 {[%emt 0:00:03]} e5 {[%emt 0:00:03]} 2. f4 {[%emt 0:00:05]} exf4 {[%emt 0:00:05]} 3. Nf3 {[%emt 0:00:04]} Ne7 {[%emt 0:00:05]} 4. Bc4 {[%emt 0:00:15]} d5 {[%emt 0:03:41]} 5. exd5 {[%emt 0:00:07]} Nxd5 {[%emt 0:00:04]} 6. O-O {[%emt 0:00:10]} Be6 {[%emt 0:02:41]} 7. Qe2 {[%emt 0:00:26] C36: King's Gambit Accepted: 3 Nf3 d5.} Be7 {[%emt 0:04:02]} 8. Nc3 {[%emt 0:01:11]} Nc6 {[%emt 0:06:43]} 9. d4 {[%emt 0:02:08]} O-O {[%emt 0:03:31]} 10. Nxd5 {[%emt 0:01:16]} Bxd5 {[%emt 0:00:02]} 11. Bxd5 {[%emt 0:00:09]} Qxd5 {[%emt 0:00:04]} 12. Bxf4 {[%emt 0:05:20]} Bd6 {[%emt 0:07:06]} 13. Qd2 {[%emt 0:05:29]} Rad8 {[%emt 0:03:22]} 14. c3 {[%emt 0:00:13]} Ne7 {[%emt 0:05:33] [#]} 15. Rae1 $146 {[%emt 0:02:01]} ({Predecessor:} 15. Bxd6 Rxd6 16. b3 Qa5 17. Rae1 Ng6 18. Ng5 h6 19. Nf3 Rfd8 20. Qc2 Rd5 21. a4 {½-½ (65) Burke,K (1768)-Ledger,D (2168) Porto Carras 2018}) 15... Ng6 {[%emt 0:00:02]} 16. Bxd6 {[%emt 0:00:44]} Qxd6 {[%emt 0:01:45]} 17. Qf2 {[%emt 0:02:08]} f6 {[%emt 0:06:17]} 18. Qc2 {[%emt 0:07:29]} c6 {[%emt 0:11:44]} 19. Qb3+ {[%emt 0:03:24]} Qd5 {[%emt 0:00:10]} 20. c4 {[%emt 0:00:43]} (20. Qxb7 {feels hotter.} Rb8 21. Qxa7 Rxb2 22. Rf2) 20... Qd7 {[%emt 0:01:39]} 21. Rd1 {[%emt 0:00:14]} Rfe8 {[%emt 0:05:11]} 22. Rd2 {[%emt 0:07:07]} b6 {[%emt 0:06:54]} 23. Rc2 {[%emt 0:10:58]} Kh8 {[%emt 0:04:40]} 24. Rd1 {[%emt 0:00:56]} Re4 {[%emt 0:07:34]} 25. c5 {[%emt 0:00:45]} bxc5 {[%emt 0:02:08]} 26. Rxc5 {[%emt 0:00:20]} Rde8 {[%emt 0:00:02] White must now prevent ...Nf4.} 27. Rc2 {[%emt 0:00:45]} Nf4 {[%emt 0:01:09] Threatens to win with ...Qg4.} 28. Rf2 {[%emt 0:07:47]} (28. Kh1 $17 {keeps fighting.}) 28... Re3 $2 {[%emt 0:02:02]} (28... Qg4 $19 {...Nh3+ is the strong threat.} 29. Kh1 h6) 29. Ne5 $1 $11 {[%emt 0:02:56]} Rxb3 {[%emt 0:00:45]} 30. Nxd7 {[%emt 0:00:06][%cal Be5d7,Bd7c5,Bc5d3,Bd3f4,Bf4h5][%mdl 32]} Rd3 {[%emt 0:00:03]} 31. Rfd2 {[%emt 0:04:25]} Rde3 {[%emt 0:04:37]} 32. Kf2 {[%emt 0:02:07][%cal Od7e5]} R3e7 {[%emt 0:01:53] Prevents Ne5.} 33. Nc5 {[%emt 0:00:19]} g5 {[%emt 0:01:00]} 34. g3 {[%emt 0:00:09]} Nh3+ {[%emt 0:03:55]} 35. Kg2 {[%emt 0:01:24]} g4 {[%emt 0:00:01]} 36. Nd3 {[%emt 0:00:16] Prevents Re1.} Ng5 {[%emt 0:01:32]} 37. Rf2 {[%emt 0:00:57]} Nf3 {[%emt 0:02:57]} 38. h3 {[%emt 0:00:11]} h5 {[%emt 0:01:09]} ({Resist} 38... Nxd4 39. hxg4 Rd8 40. Nf4 $16 (40. Rxf6 Nc2 $17)) 39. Nf4 {[%emt 0:00:17] [#] And now Ng6+ would win.} Re1 {[%emt 0:00:24]} 40. Rf1 {[%emt 0:00:00]} Rxf1 {[%emt 0:00:00]} 41. Rxf1 {[%emt 0:02:03][%mdl 4096] Endgame KRN-KRN} f5 {[%emt 0:08:32]} 42. Nxh5 {[%emt 0:03:25]} Re2+ $1 {[%emt 0:05:34]} 43. Rf2 {[%emt 0:00:05]} Re1 {[%emt 0:00:19][%csl Gf3][%cal Re1g1] [#]} 44. hxg4 {[%emt 0:00:07]} fxg4 {[%emt 0:00:02][%csl Gf3][%cal Re1g1]} 45. Rf1 {[%emt 0:00:07] Inhibits Rg1+. Strongly threatening Rxe1.} Re2+ {[%emt 0:00:45]} 46. Rf2 {[%emt 0:00:05]} Re1 {[%emt 0:06:28] Weighted Error Value: White=0.10 (very precise) /Black=0.11 (very precise)} 1/2-1/2

[Event "Prague Festival-Futures 2022"]
[Site "Prague"]
[Date "2022.06.16"]
[Round "8.3"]
[White "Bouska, Jiri"]
[Black "Warchol, Kamil"]
[Result "0-1"]
[ECO "A11"]
[WhiteElo "2117"]
[BlackElo "2079"]
[Annotator "TA"]
[PlyCount "152"]
[EventDate "2022.06.07"]
[EventType "tourn"]
[EventCountry "CZE"]
[SourceTitle "playchess.com"]
[Source "ChessBase"]
[SourceQuality "1"]
[TimeControl "40/5400+30:1800+30"]

{[%evp 11,152,8,12,8,23,29,35,35,31,33,39,33,47,33,41,41,43,18,55,9,31,24,39,28,52,0,21,-27,-19,-132,-145,-145,-148,-153,-147,-142,-156,-131,-144,-140,-131,-157,-110,-135,-104,-155,-92,-174,-79,-130,-128,-216,-132,-204,-116,-278,-272,-297,-270,-274,-285,-275,-247,-227,-195,-212,-127,-204,-224,-256,-244,-250,-252,-252,-252,-252,-222,-269,-246,-220,-213,-379,-354,-354,-342,-342,-309,-342,-337,-346,-346,-346,-346,-442,-346,-443,-437,-421,-397,-587,-551,-544,-294,-533,-422,-601,-591,-491,-404,-886,-437,-4858,-2049,-1026,-514,-29958,-29962,-29963,-29960,-29967,-29965,-29960,-4153,-10423,-4153,-29976,-4153,-4264,-4264,-29980,-29981,-29981,-29982,-29981,-29982,-29991,-29986,-29986,-29987,-29988,-29989,-29989,-29990]} 1. Nf3 {[%emt 0:00:07]} d5 {[%emt 0:00:08]} 2. g3 {[%emt 0:00:07]} Nf6 {[%emt 0:00:21]} 3. Bg2 {[%emt 0:00:10]} c6 {[%emt 0:00:27]} 4. O-O {[%emt 0:00:14]} Bf5 {[%emt 0:00:21]} 5. c4 {[%emt 0:00:39]} e6 {[%emt 0:06:23]} 6. Qb3 {[%emt 0:01:02]} Qb6 {[%emt 0:08:57]} 7. d3 {[%emt 0:00:27] A11: English Opening: 1...c6.} h6 {[%emt 0:07:51]} 8. cxd5 {[%emt 0:02:06] Hoping for e4.} exd5 {[%emt 0:11:15]} 9. Qc2 {[%emt 0:01:38] White is slightly better.} Be7 {[%emt 0:10:30] The main line 9...Be7 scores better than 9...Nbd7.} 10. Nc3 {[%emt 0:02:14]} O-O {[%emt 0:02:01]} 11. e4 {[%emt 0:01:11]} Bh7 {[%emt 0:05:25]} 12. Be3 {[%emt 0:16:16]} Qd8 {[%emt 0:04:19]} 13. Rad1 {[%emt 0:03:02]} Na6 {[%emt 0:01:58][%cal Bb8a6,Ba6c7,Bc7e6][%mdl 32]} 14. a3 {[%emt 0:03:18]} Nc7 {[%emt 0:01:11] [#]} 15. Qc1 $146 {[%emt 0:14:44]} (15. Qb3 $14) ({Predecessor:} 15. Qb3 Qc8 16. Ne5 Bd6 17. f4 Re8 18. Bf2 Bxe5 19. fxe5 Ng4 20. exd5 Nxd5 21. Nxd5 cxd5 22. Qxd5 Nxe5 {1-0 (51) Susla,V (2356)-Khlopov,S (2353) LSS email 2020}) 15... Ne6 {[%emt 0:03:06]} 16. Nd4 {[%emt 0:16:03]} Kh8 {[%emt 0:08:36]} 17. h3 {[%emt 0:03:00]} Rc8 {[%emt 0:06:09][%cal Ba8c8,Bc8c5,Bc5a5][%mdl 32]} 18. exd5 {[%emt 0:07:27]} (18. Rfe1 $14) 18... cxd5 {[%emt 0:08:32]} 19. Nxe6 {[%emt 0:00:44]} (19. Rfe1 $142) 19... fxe6 $11 {[%emt 0:00:02]} 20. Bd4 {[%emt 0:00:17]} (20. d4 $1 $11) 20... e5 $1 $17 {[%emt 0:01:34]} 21. Bxe5 {[%emt 0:00:09] And now Qd2 would win.} d4 {[%emt 0:00:06]} 22. Bxb7 {[%emt 0:02:26]} Rc5 {[%emt 0:03:45][%mdl 64] Pin} (22... dxc3 23. Bxc8 Qxc8 24. Kh2 $15) 23. Rfe1 {[%emt 0:02:45][%cal Oe5d4]} (23. Bxf6 $2 Bxf6 24. Be4 Bg8 $19) 23... dxc3 {[%emt 0:00:07]} 24. bxc3 {[%emt 0:00:44]} Ra5 {[%emt 0:01:48]} (24... Bxd3 25. Bg2 $14) 25. Bg2 {[%emt 0:02:07]} Bxa3 {[%emt 0:01:08]} ({Don't take} 25... Bxd3 26. Qe3 $16) 26. Qd2 {[%emt 0:01:36]} Nd7 {[%emt 0:00:57]} 27. Bf4 {[%emt 0:00:45]} Nc5 {[%emt 0:01:15][%cal Rc5d3]} 28. Bf1 {[%emt 0:03:00]} (28. c4 $142) 28... Qd7 {[%emt 0:00:42]} (28... Qf6 $142 29. Be5 Qf7) 29. Qe3 {[%emt 0:02:14]} (29. Re5 $17 {was necessary.}) 29... Qf7 {[%emt 0:01:41]} (29... Rc8 $19 {...Bb2 is the strong threat.} 30. Qd2 Nb3) 30. Bd6 {[%emt 0:01:09]} (30. d4 $142) 30... Rc8 $1 {[%emt 0:00:56][%cal Oc5d3]} ({Of course not} 30... Rd8 $6 31. Qe7 Qg8 32. Ra1 $15) 31. Bf4 {[%emt 0:02:38]} (31. Qe7 $17 Qxe7 32. Rxe7) 31... Nd7 {[%emt 0:00:28]} 32. c4 {[%emt 0:01:19]} (32. Ra1 $17 {is a better defense.}) 32... Nf6 {[%emt 0:00:53]} ({Black should play} 32... Bb4 $19 33. Qe6 Qxe6 34. Rxe6 Ra3) 33. d4 $2 {[%emt 0:00:39]} (33. Ra1 $17 {was worth a try.}) 33... Bb4 $19 {[%emt 0:00:06]} 34. Re2 {[%emt 0:00:35][%cal Be1e2,Be2b2,Bb2b7][%mdl 32]} Qxc4 {[%emt 0:01:02]} 35. Be5 {[%emt 0:04:24]} Qf7 {[%emt 0:00:26]} 36. Rb2 {[%emt 0:01:46]} Bf8 {[%emt 0:01:07]} 37. Bg2 {[%emt 0:00:41]} Qg6 {[%emt 0:01:24]} 38. Rb7 {[%emt 0:02:41]} Nd5 {[%emt 0:00:51]} (38... Ra3 $19 39. Qf4 Bg8) 39. Qd2 {[%emt 0:01:03]} (39. Qe1 $17 {was the only chance.} Nc3 40. Ra1 Rxa1 41. Qxa1) 39... Nc3 {[%emt 0:00:33][%cal Bd5c3,Bc3e2,Be2c1,Bc1d3][%mdl 32] White must now prevent ...Ra2.} 40. Rc1 {[%emt 0:00:00] [#]} Ne2+ {[%emt 0:00:00][%mdl 512]} 41. Kh2 {[%emt 0:02:38]} Nxc1 {[%emt 0:08:46]} ({Stronger than} 41... Rxc1 42. Qxa5 Qf5 43. Qd8 $17) 42. Qxa5 {[%emt 0:02:37]} Nd3 $1 {[%emt 0:05:51] Threatens to win with ...Qf5.} 43. Rxa7 {[%emt 0:10:45]} Nxf2 {[%emt 0:06:26]} 44. Ra8 {[%emt 0:13:47] [#]} Qe8 {[%emt 0:00:57]} 45. Rxc8 {[%emt 0:01:52]} Qxc8 {[%emt 0:01:29]} 46. d5 $2 {[%emt 0:00:09]} (46. g4) 46... Nd3 {[%emt 0:03:39]} 47. Bc7 {[%emt 0:02:36]} Nc5 {[%emt 0:04:16]} 48. d6 {[%emt 0:00:52]} Nd7 {[%emt 0:00:43]} 49. Qb5 {[%emt 0:00:26]} Nf6 {[%emt 0:00:34]} 50. Qc6 {[%emt 0:01:48]} Bf5 {[%emt 0:00:34]} 51. g4 {[%emt 0:00:26]} Bd7 {[%emt 0:00:17]} 52. Qf3 {[%emt 0:00:27]} Qa6 {[%emt 0:00:47]} 53. Qf4 {[%emt 0:00:32]} Qe2 {[%emt 0:00:35]} 54. Kh1 {[%emt 0:00:28]} Qe8 {[%emt 0:00:47]} 55. g5 {[%emt 0:00:21]} (55. Kh2 $142) 55... hxg5 {[%emt 0:01:04]} 56. Qxg5 {[%emt 0:00:09]} Qh5 {[%emt 0:00:29] Against Qh4} 57. Qg3 {[%emt 0:00:23]} (57. Qxh5+ Nxh5 58. Kh2) 57... Qc5 {[%emt 0:00:28]} 58. Qh4+ {[%emt 0:00:46]} (58. Qf4 $142) 58... Kg8 {[%emt 0:00:02]} 59. Qg3 {[%emt 0:00:11]} Be6 {[%emt 0:00:35]} 60. Kh2 {[%emt 0:01:08]} (60. Qd3 $142) 60... Ne8 {[%emt 0:00:49]} (60... Nh5 $142 61. Qe1 Bxd6+ 62. Bxd6 Qxd6+ 63. Kg1 Qd4+ 64. Kh2 Nf4) 61. Kh1 {[%emt 0:00:40]} (61. d7 $142 Bxd7 62. Be5) 61... Bxd6 {[%emt 0:01:19]} (61... Nxc7 $142 62. dxc7 Qc1+ 63. Kh2 Qd2) 62. Bxd6 {[%emt 0:00:11]} Qxd6 {[%emt 0:00:40]} 63. Qxd6 {[%emt 0:00:19]} (63. Kh2 $19) 63... Nxd6 {[%emt 0:00:02]} 64. Kh2 {[%emt 0:00:06]} Nf5 {[%emt 0:00:05]} 65. Bf1 {[%emt 0:00:41]} Kh7 {[%emt 0:00:12]} 66. Bd3 {[%emt 0:00:13]} Kh6 {[%emt 0:00:14]} (66... Kg6 $142 67. Kg2 Kh5 68. Kh1 Kh4 69. Kg2 g5 70. Kf3 Ne7 71. Ke3 Bxh3 72. Be2 Nf5+ 73. Kd3 Bg4 74. Bf1 Bf3 75. Kd2 g4 76. Ke1 g3 77. Ba6 Nd4 78. Bf1 Bc6 79. Kd1 Ba4+ 80. Kc1 Bb5 81. Bg2 Bc6 82. Bf1 Bb5 83. Bg2 Bc6 84. Bf1 Bb5) 67. Kg2 {[%emt 0:00:10]} Kh5 {[%emt 0:00:34]} 68. Be4 {[%emt 0:01:18] [#]} Kh4 {[%emt 0:00:27]} (68... Bd5 $142 $1 {[%mdl 512]} 69. Bxd5 Ne3+ 70. Kf3 Nxd5 71. Ke4 Ne7 72. Kf3 Kh4 73. Kg2 g5 74. Kh2 Ng6 75. Kg2 Nf4+ 76. Kf2 Nxh3+ 77. Ke2 g4 78. Ke3 g3 79. Kf3 Ng5+ 80. Kf4 g2 81. Ke5 g1=Q 82. Kd6 Qd4+ 83. Kc7 Qc5+ 84. Kd7 Nh3 85. Kd8 Kg5 86. Ke8 Qc7 87. Kf8 Kf6 88. Kg8 Qg7#) 69. Bd3 {[%emt 0:00:14]} Nd6 {[%emt 0:00:53]} 70. Kg1 {[%emt 0:00:21]} Kg3 {[%emt 0:00:34] Black mates.} 71. h4 {[%emt 0:00:10]} Bh3 {[%emt 0:00:24]} 72. h5 {[%emt 0:00:27]} Nf7 {[%emt 0:00:10]} 73. h6 {[%emt 0:00:07]} gxh6 {[%emt 0:00:40]} 74. Be4 {[%emt 0:00:06]} Ng5 {[%emt 0:00:19]} 75. Bd5 {[%emt 0:00:09]} Nf3+ {[%emt 0:00:21]} 76. Bxf3 {[%emt 0:00:07]} Kxf3 {[%emt 0:00:02] Weighted Error Value: White=0.47/Black=0.31} 0-1